bitfinex-derivatives/quotes_BTCF0:USTF0_20230901
["timestamp","ask_amount","ask_price","bid_price","bid_amount"]
[1693582397056,0.08014178,25920.0,25919.0,0.417]
[1693582397858,0.08214178,25920.0,25919.0,0.417]
[1693582398060,0.08214178,25920.0,25919.0,0.45012699]
[1693582399165,0.24044178,25920.0,25919.0,0.45012699]
[1693582399465,0.24044178,25920.0,25919.0,0.45612699]
[1693582399971,0.24044178,25920.0,25919.0,0.423]
[1693582400268,0.24044178,25920.0,25919.0,0.45612699]
[1693582403260,0.24044178,25920.0,25919.0,0.47612699]
[1693582404265,0.23744178,25923.0,25921.0,0.417]
[1693582404462,0.23744178,25923.0,25922.0,0.45012699]
[1693582404654,0.08014178,25923.0,25922.0,0.45012699]
[1693582405665,0.08014178,25923.0,25922.0,0.45312699]
[1693582406066,0.08014178,25923.0,25922.0,1.03131625]
[1693582406269,0.08014178,25923.0,25922.0,1.05131625]
[1693582406570,0.08014178,25923.0,25922.0,1.05431625]
[1693582407962,0.23334178,25923.0,25922.0,1.05431625]
[1693582411456,0.23334178,25923.0,25922.0,1.00118926]
[1693582411870,0.23334178,25923.0,25922.0,1.03431625]
[1693582412065,0.23334178,25923.0,25922.0,1.05431625]
[1693582412377,0.23334178,25923.0,25922.0,1.03431625]
[1693582413265,0.23334178,25923.0,25922.0,1.05431625]
[1693582414175,0.1532,25923.0,25922.0,1.05431625]
[1693582415274,0.1532,25923.0,25922.0,1.27417447]
[1693582415470,0.1532,25923.0,25922.0,1.29417447]
[1693582415863,0.1532,25923.0,25922.0,1.29717447]
[1693582416069,0.1532,25923.0,25922.0,1.29417447]
[1693582416877,0.1532,25923.0,25922.0,1.27417447]
[1693582417071,0.27255621,25927.0,25922.0,1.27417447]
[1693582417272,0.27255621,25927.0,25926.0,0.417]
[1693582417473,0.32910459,25927.0,25926.0,0.417]
[1693582417868,0.27255621,25927.0,25926.0,0.417]
[1693582418276,0.08014178,25927.0,25926.0,0.417]
[1693582418674,0.08014178,25927.0,25926.0,0.45012699]
[1693582418975,0.08014178,25927.0,25926.0,0.45312699]
[1693582419979,0.13669016,25927.0,25926.0,0.42]
[1693582420272,0.30169016,25927.0,25926.0,0.42]
[1693582420877,0.35637923,25927.0,25926.0,0.42]
[1693582421077,0.30169016,25927.0,25926.0,0.42]
[1693582421278,0.24514178,25927.0,25926.0,0.423]
[1693582421681,0.24514178,25927.0,25926.0,0.45612699]
[1693582421873,0.24514178,25927.0,25926.0,0.47612699]
[1693582422570,0.24514178,25927.0,25926.0,1.05553298]
[1693582423981,0.30169016,25927.0,25926.0,1.02240599]
[1693582424173,0.24514178,25927.0,25926.0,1.05553298]
[1693582424373,0.24514178,25927.0,25926.0,1.03553298]
[1693582424572,0.30169016,25927.0,25926.0,1.00240599]
[1693582424772,0.24514178,25927.0,25926.0,1.03553298]
[1693582424980,0.24514178,25927.0,25926.0,1.05553298]
[1693582426684,0.00386,25933.0,25928.0,0.417]
[1693582426685,0.08014178,25930.0,25928.0,0.417]
[1693582426877,0.08014178,25930.0,25929.0,0.45012699]
[1693582427088,0.1564,25932.0,25929.0,0.45012699]
[1693582427089,0.1564,25932.0,25929.0,1.03267798]
[1693582427289,0.19615444,25936.0,25931.0,0.417]
[1693582427480,0.00386,25936.0,25935.0,0.417]
[1693582427671,0.19615444,25936.0,25935.0,0.417]
[1693582427875,0.42086,25936.0,25935.0,0.417]
[1693582428175,0.93315444,25936.0,25932.0,0.417]
[1693582428376,0.417,25933.0,25932.0,0.417]
[1693582428774,0.54823745,25933.0,25932.0,0.1671]
[1693582428978,0.437,25933.0,25928.0,0.003]
[1693582429182,0.42086,25930.0,25929.0,0.417]
[1693582429376,0.00386,25929.0,25928.0,0.003]
[1693582429575,0.437,25929.0,25928.0,0.003]
[1693582429776,0.54823745,25929.0,25928.0,0.003]
[1693582430186,0.54823745,25929.0,25926.0,0.417]
[1693582430383,0.417,25927.0,25926.0,0.1672]
[1693582430688,0.3,25926.0,25923.0,0.417]
[1693582430883,0.417,25924.0,25923.0,0.417]
[1693582431478,0.52823745,25924.0,25923.0,0.417]
[1693582432185,0.54823745,25924.0,25923.0,0.42]
[1693582432686,0.56223745,25924.0,25923.0,0.423]
[1693582432988,0.58223745,25924.0,25923.0,0.423]
[1693582434990,0.56223745,25924.0,25923.0,0.423]
[1693582436286,0.31328,25923.0,25920.0,0.417]
[1693582436480,0.417,25921.0,25920.0,0.40372]
[1693582436986,0.52823745,25921.0,25920.0,0.40372]
[1693582437586,0.52823745,25921.0,25920.0,0.40572]
[1693582437790,0.53123745,25921.0,25920.0,0.40672]
[1693582438090,0.11423745,25921.0,25920.0,0.42]
[1693582439883,0.11423745,25921.0,25920.0,0.418]
[1693582440079,0.11523745,25921.0,25920.0,0.418]
[1693582440685,0.11523745,25921.0,25920.0,0.42]
[1693582441897,0.15123745,25921.0,25920.0,0.423]
[1693582443995,0.56823745,25921.0,25920.0,0.423]
[1693582444301,0.17123745,25921.0,25920.0,0.423]
[1693582448897,0.15123745,25921.0,25920.0,0.423]
[1693582449399,0.00386,25917.0,25909.0,0.09850459]
[1693582449590,0.417,25913.0,25911.0,0.39771]
[1693582449895,0.05468907,25912.0,25911.0,0.39771]
[1693582450083,0.05468907,25912.0,25911.0,1.53019132]
[1693582450283,0.11509745,25912.0,25911.0,1.51019132]
[1693582450893,0.41509745,25912.0,25911.0,1.51019132]
[1693582451885,0.41509745,25912.0,25911.0,0.39771]
[1693582452582,0.41509745,25912.0,25911.0,0.40071]
[1693582452788,0.45109745,25912.0,25911.0,0.40071]
[1693582453996,0.90509745,25912.0,25911.0,0.006]
[1693582454682,0.92509745,25912.0,25911.0,0.006]
[1693582455390,0.90509745,25912.0,25911.0,0.423]
[1693582455589,0.92509745,25912.0,25911.0,0.423]
[1693582456700,0.90509745,25912.0,25911.0,0.423]
[1693582456894,0.90509745,25912.0,25911.0,0.006]
[1693582459899,0.92509745,25912.0,25911.0,0.006]
[1693582461500,0.3,25908.0,25906.0,0.417]
[1693582461695,0.52823745,25907.0,25906.0,0.42370999]
[1693582462800,0.52823745,25907.0,25906.0,0.42570999]
[1693582463296,0.00785,25906.0,25903.0,0.417]
[1693582463492,0.00386,25904.0,25903.0,0.41301]
[1693582463997,0.11509745,25904.0,25903.0,0.43301]
[1693582464391,0.11509745,25904.0,25903.0,0.43142]
[1693582464800,0.01850298,25904.0,25903.0,0.43428]
[1693582465386,0.04206505,25904.0,25903.0,0.43528]
[1693582465998,0.05506505,25904.0,25903.0,0.43728]
[1693582466699,0.05506505,25904.0,25903.0,0.3993]
[1693582467103,0.05506505,25904.0,25903.0,0.4193]
[1693582467599,0.47206505,25904.0,25903.0,0.00169]
[1693582469804,0.24204732,25902.0,25901.0,0.00386]
[1693582469992,0.24204732,25902.0,25900.0,0.4309]
[1693582469993,0.65904732,25902.0,25900.0,0.4309]
[1693582470307,0.49511045,25901.0,25900.0,0.0139]
[1693582470901,0.49511045,25901.0,25899.0,0.1622]
[1693582471102,0.49511045,25900.0,25899.0,0.16877]
[1693582471303,0.81654732,25902.0,25899.0,1.71864289]
[1693582471502,0.81654732,25902.0,25901.0,0.417]
[1693582471701,0.81654732,25902.0,25901.0,0.42357]
[1693582471903,0.89465777,25902.0,25901.0,0.42357]
[1693582473012,0.89265777,25902.0,25901.0,0.43957]
[1693582473698,0.96265777,25902.0,25901.0,0.42557]
[1693582475102,0.96265777,25902.0,25901.0,0.00857]
[1693582475299,0.9410957,25902.0,25901.0,0.0466154]
[1693582475607,0.31404732,25902.0,25901.0,0.4636154]
[1693582475807,0.31404732,25902.0,25901.0,0.53830447]
[1693582476017,0.31404732,25902.0,25901.0,0.42557]
[1693582476398,0.39215777,25902.0,25901.0,1.53839766]
[1693582476607,0.31404732,25902.0,25901.0,1.53839766]
[1693582477500,0.31404732,25902.0,25901.0,1.55839766]
[1693582477704,0.31404732,25902.0,25901.0,1.65113213]
[1693582478105,0.31404732,25902.0,25901.0,1.63113213]
[1693582478307,0.31404732,25902.0,25901.0,1.65113213]
[1693582478510,0.31404732,25902.0,25901.0,1.57644306]
[1693582478703,0.31404732,25902.0,25901.0,1.59644306]
[1693582479109,0.31404732,25902.0,25901.0,1.65113213]
[1693582479308,0.31404732,25902.0,25901.0,1.59644306]
[1693582479503,0.31404732,25902.0,25901.0,1.57644306]
[1693582479703,0.31404732,25902.0,25901.0,1.59644306]
[1693582480012,0.31404732,25902.0,25901.0,1.65113213]
[1693582481907,0.31404732,25902.0,25901.0,1.59644306]
[1693582482507,0.31404732,25902.0,25901.0,1.57644306]
[1693582482906,0.31404732,25902.0,25901.0,1.63113213]
[1693582483108,0.31404732,25902.0,25901.0,1.57644306]
[1693582483605,0.27804732,25902.0,25901.0,1.57644306]
[1693582483809,0.27804732,25902.0,25901.0,1.57444306]
[1693582484012,0.77315777,25902.0,25901.0,1.11939766]
[1693582484213,0.80915777,25902.0,25901.0,1.12139766]
[1693582487516,0.80915777,25902.0,25901.0,1.11482766]
[1693582490816,0.82915777,25902.0,25901.0,1.11482766]
[1693582491017,0.8075957,25902.0,25901.0,1.11482766]
[1693582491412,0.7875957,25902.0,25901.0,1.11482766]
[1693582491612,0.82915777,25902.0,25901.0,0.002]
[1693582492714,0.75104732,25902.0,25901.0,0.07790459]
[1693582492914,0.75104732,25902.0,25901.0,0.13259366]
[1693582493223,0.73104732,25902.0,25901.0,0.0400454]
[1693582493427,0.73104732,25902.0,25901.0,0.11594999]
[1693582493822,0.73104732,25902.0,25901.0,1.22875268]
[1693582494024,0.73104732,25902.0,25901.0,1.28344175]
[1693582494226,0.73104732,25902.0,25901.0,1.22875268]
[1693582495420,0.73104732,25902.0,25901.0,1.26670498]
[1693582495618,0.73104732,25902.0,25901.0,1.32139405]
[1693582495819,0.31404732,25902.0,25901.0,1.69027498]
[1693582496219,0.31404732,25902.0,25901.0,1.74496405]
[1693582497730,0.31404732,25902.0,25901.0,1.69027498]
[1693582497925,0.31404732,25902.0,25901.0,1.74496405]
[1693582498124,0.31404732,25902.0,25901.0,1.69027498]
[1693582498427,0.3705957,25902.0,25901.0,1.65222958]
[1693582498928,0.31404732,25902.0,25901.0,1.65222958]
[1693582499527,0.31404732,25902.0,25901.0,1.74496405]
[1693582500229,0.33560939,25902.0,25901.0,1.69027498]
[1693582500532,0.39215777,25902.0,25901.0,1.65222958]
[1693582500717,0.3705957,25902.0,25901.0,1.65222958]
[1693582500922,0.3705957,25902.0,25901.0,1.69027498]
[1693582501119,0.3705957,25902.0,25901.0,1.57641809]
[1693582501325,0.31404732,25902.0,25901.0,1.69027498]
[1693582501525,0.31404732,25902.0,25901.0,1.74496405]
[1693582501720,0.31404732,25902.0,25901.0,1.63110716]
[1693582501926,0.31404732,25902.0,25901.0,1.57641809]
[1693582502326,0.31404732,25902.0,25901.0,1.69027498]
[1693582502524,0.33560939,25902.0,25901.0,1.69027498]
[1693582502723,0.31404732,25902.0,25901.0,1.69027498]
[1693582503425,0.31404732,25902.0,25901.0,1.57641809]
[1693582503629,0.31404732,25902.0,25901.0,1.63110716]
[1693582504135,0.31404732,25902.0,25901.0,1.57641809]
[1693582504334,0.31404732,25902.0,25901.0,1.65275493]
[1693582504733,0.31404732,25902.0,25901.0,1.707444]
[1693582505226,0.31404732,25902.0,25901.0,1.63110716]
[1693582505629,0.31404732,25902.0,25901.0,1.70747609]
[1693582507331,0.31404732,25902.0,25901.0,1.63110716]
[1693582509437,0.072,25902.0,25901.0,1.64453716]
[1693582509631,0.24204732,25908.0,25905.0,0.417]
[1693582509832,0.24204732,25908.0,25907.0,0.417]
[1693582510027,0.24204732,25908.0,25907.0,1.54980269]
[1693582510230,0.19255192,25910.0,25907.0,1.52980269]
[1693582510432,0.19255192,25910.0,25909.0,0.417]
[1693582510739,0.19255192,25912.0,25910.0,0.05795268]
[1693582511037,0.19255192,25915.0,25913.0,0.417]
[1693582511334,0.19255192,25915.0,25914.0,0.47168907]
[1693582511851,0.19641192,25917.0,25914.0,0.47168907]
[1693582512031,0.19641192,25917.0,25916.0,0.417]
[1693582512225,0.2529603,25917.0,25916.0,0.417]
[1693582512637,0.27452237,25917.0,25916.0,0.417]
[1693582512838,0.08197045,25917.0,25916.0,0.417]
[1693582513228,0.27452237,25917.0,25916.0,0.417]
[1693582513425,0.24204732,25915.0,25913.0,0.007]
[1693582513640,0.91211045,25914.0,25913.0,0.007]
[1693582513828,0.93211045,25914.0,25913.0,0.007]
[1693582514029,0.00386,25911.0,25908.0,0.417]
[1693582514225,0.47354838,25910.0,25909.0,0.09273447]
[1693582514426,0.47354838,25910.0,25908.0,0.417]
[1693582514842,0.02156207,25909.0,25908.0,0.437]
[1693582515032,0.07811045,25909.0,25908.0,0.437]
[1693582515534,0.24204732,25912.0,25908.0,0.47168907]
[1693582515733,0.003,25910.0,25909.0,1.17053384]
[1693582515937,0.003,25910.0,25909.0,1.60753384]
[1693582516237,0.003,25910.0,25909.0,1.70026831]
[1693582517141,0.003,25910.0,25909.0,1.73626831]
[1693582517936,0.003,25910.0,25909.0,1.77326831]
[1693582518234,0.006,25910.0,25909.0,1.75326831]
[1693582518433,0.006,25910.0,25909.0,1.77326831]
[1693582519732,0.5735,25916.0,25909.0,1.77326831]
[1693582519733,0.24204732,25918.0,25913.0,0.47495268]
[1693582519933,0.1519,25919.0,25917.0,0.417]
[1693582520140,0.02,25919.0,25918.0,0.50973447]
[1693582520435,0.02,25919.0,25918.0,0.417]
[1693582520641,0.24204732,25921.0,25918.0,0.50973447]
[1693582520832,0.26204732,25921.0,25920.0,0.417]
[1693582521336,0.67904732,25921.0,25918.0,0.417]
[1693582521536,0.47354838,25920.0,25918.0,0.417]
[1693582521737,0.417,25920.0,25918.0,0.417]
[1693582521936,0.07811045,25919.0,25918.0,0.417]
[1693582522137,0.11511045,25919.0,25918.0,0.417]
[1693582522332,0.13511045,25919.0,25918.0,0.417]
[1693582522838,0.07654838,25919.0,25918.0,0.47468907]
[1693582523037,0.454,25920.0,25918.0,0.47468907]
[1693582523430,0.474,25920.0,25918.0,0.47768907]
[1693582523630,0.037,25919.0,25918.0,0.423]
[1693582524037,0.11511045,25919.0,25918.0,0.423]
[1693582524436,0.09354838,25919.0,25918.0,0.4610454]
[1693582524834,0.037,25919.0,25918.0,0.4580454]
[1693582525038,0.073,25919.0,25918.0,0.4620454]
[1693582525441,0.05756207,25919.0,25918.0,0.424]
[1693582525636,0.11411045,25919.0,25918.0,0.424]
[1693582526033,0.11411045,25919.0,25918.0,0.421]
[1693582526239,0.15111045,25919.0,25918.0,0.424]
[1693582529045,0.12954838,25919.0,25918.0,0.424]
[1693582529232,0.073,25919.0,25918.0,0.424]
[1693582530141,0.09456207,25919.0,25918.0,0.424]
[1693582530738,0.15111045,25919.0,25918.0,0.424]
[1693582531643,0.58811045,25919.0,25918.0,0.007]
[1693582533843,0.58811045,25919.0,25918.0,0.424]
[1693582535237,0.24204732,25918.0,25915.0,0.1643]
[1693582535440,0.40644732,25918.0,25917.0,0.417]
[1693582535847,0.40644732,25918.0,25917.0,0.47168907]
[1693582536552,0.4629957,25918.0,25917.0,0.417]
[1693582536849,0.48455777,25918.0,25917.0,0.417]
[1693582537440,0.49155777,25918.0,25917.0,0.417]
[1693582538248,0.51755777,25918.0,25917.0,0.42]
[1693582538649,0.55841777,25918.0,25917.0,0.423]
[1693582539250,0.99541777,25918.0,25917.0,0.006]
[1693582541752,0.97541777,25918.0,25917.0,0.006]
[1693582542153,0.2344,25918.0,25917.0,0.423]
[1693582542456,0.07,25918.0,25917.0,0.443]
[1693582542759,0.07,25918.0,25917.0,0.53573447]
[1693582544853,0.037,25918.0,25917.0,0.53273447]
[1693582545051,0.04,25918.0,25917.0,0.56573447]
[1693582545952,0.417,25923.0,25919.0,0.05795268]
[1693582546157,0.34841675,25933.0,25928.0,0.05795268]
[1693582546455,0.02,25933.0,25932.0,0.417]
[1693582546755,0.24204732,25935.0,25932.0,0.417]
[1693582546953,0.24204732,25935.0,25934.0,0.417]
[1693582547160,0.26055029,25935.0,25934.0,0.417]
[1693582547861,0.24204732,25935.0,25934.0,0.47354838]
[1693582548153,0.26055029,25935.0,25934.0,0.417]
[1693582549361,0.035,25935.0,25934.0,0.42]
[1693582549565,0.035,25935.0,25934.0,1.13192625]
[1693582549763,0.05,25935.0,25934.0,1.19147463]
[1693582550060,0.05,25935.0,25934.0,1.17147463]
[1693582552262,0.05,25935.0,25934.0,1.37197463]
[1693582553353,0.05,25935.0,25934.0,0.79269013]
[1693582554362,0.05,25935.0,25934.0,0.81269013]
[1693582555558,0.05,25935.0,25934.0,0.79269013]
[1693582555963,0.05,25935.0,25934.0,1.36817854]
[1693582556562,0.05,25935.0,25934.0,1.38817854]
[1693582558162,0.00012,25937.0,25934.0,1.38817854]
[1693582558362,0.00012,25937.0,25936.0,0.6175]
[1693582558556,0.00012,25937.0,25936.0,0.6375]
[1693582558956,0.00012,25937.0,25936.0,0.74873745]
[1693582559669,0.00386,25945.0,25936.0,1.21538864]
[1693582559860,0.02386,25945.0,25944.0,0.6175]
[1693582560061,0.04236297,25945.0,25944.0,0.6175]
[1693582560463,0.02386,25945.0,25944.0,0.67404838]
[1693582560663,0.04236297,25945.0,25944.0,0.6175]
[1693582561064,0.06392504,25945.0,25942.0,0.6175]
[1693582561274,0.01850297,25944.0,25942.0,0.6175]
[1693582561459,0.02156207,25944.0,25942.0,0.67218907]
[1693582561659,0.01850297,25943.0,25942.0,0.6175]
[1693582561959,0.00386,25945.0,25942.0,0.67404838]
[1693582562164,0.02386,25945.0,25942.0,0.6205]
[1693582562359,0.01850297,25944.0,25942.0,0.67704838]
[1693582562671,0.00386,25945.0,25942.0,0.6205]
[1693582562862,0.01850297,25944.0,25942.0,0.6205]
[1693582563162,0.00386,25945.0,25943.0,0.67218907]
[1693582563368,0.00386,25945.0,25944.0,0.6175]
[1693582563565,0.02236297,25945.0,25944.0,0.6175]
[1693582564163,0.06392504,25945.0,25944.0,0.6175]
[1693582564374,0.06392504,25945.0,25942.0,0.6205]
[1693582564573,0.01850297,25944.0,25942.0,0.6205]
[1693582564872,0.02156207,25943.0,25942.0,0.6205]
[1693582565069,0.06006504,25943.0,25942.0,0.6205]
[1693582565368,0.06006504,25943.0,25942.0,0.6175]
[1693582565661,0.06006504,25943.0,25942.0,0.6205]
[1693582566068,0.30211236,25943.0,25942.0,0.6235]
[1693582566965,0.30211236,25943.0,25942.0,0.006]
[1693582567475,0.91961236,25943.0,25937.0,0.6175]
[1693582567661,0.6175,25942.0,25937.0,0.6175]
[1693582567974,0.24204732,25940.0,25937.0,0.6175]
[1693582568177,0.00386,25938.0,25937.0,0.6175]
[1693582568374,0.02,25938.0,25937.0,0.6175]
[1693582568668,0.06006504,25938.0,25937.0,0.6175]
[1693582568875,0.03850297,25938.0,25937.0,0.6225]
[1693582569375,0.06006504,25938.0,25937.0,0.6225]
[1693582569576,0.03850297,25938.0,25937.0,0.6535]
[1693582569768,0.03850297,25938.0,25937.0,0.6785]
[1693582570170,0.02150297,25938.0,25937.0,0.6485]
[1693582570373,0.06306504,25938.0,25937.0,0.6485]
[1693582570569,0.02750297,25938.0,25937.0,0.6185]
[1693582570768,0.05136297,25938.0,25937.0,0.6185]
[1693582570963,0.04750297,25938.0,25937.0,0.6185]
[1693582571365,0.06906504,25938.0,25937.0,0.6185]
[1693582572169,0.07292504,25938.0,25937.0,0.001]
[1693582573673,0.24204732,25936.0,25935.0,0.6175]
[1693582573868,0.01928,25935.0,25929.0,0.05795268]
[1693582574069,0.24204732,25933.0,25931.0,0.59822]
[1693582574274,0.04006504,25932.0,25931.0,0.59822]
[1693582574673,0.06006504,25932.0,25931.0,0.59822]
[1693582576270,0.04006504,25932.0,25931.0,0.59922]
[1693582576476,0.06006504,25932.0,25931.0,0.59922]
[1693582577177,0.07006504,25932.0,25931.0,0.60022]
[1693582578080,0.06950297,25932.0,25931.0,0.60322]
[1693582578767,0.09106504,25932.0,25931.0,0.60322]
[1693582579170,0.07106504,25932.0,25931.0,0.60322]
[1693582579570,0.09106504,25932.0,25931.0,0.60322]
[1693582580183,0.07106504,25932.0,25931.0,0.60322]
[1693582580373,0.04950297,25932.0,25931.0,0.60322]
[1693582580578,0.07106504,25932.0,25931.0,0.60322]
[1693582581269,0.04950297,25932.0,25931.0,0.60322]
[1693582581886,0.07106504,25932.0,25931.0,0.60322]
[1693582582275,0.04950297,25932.0,25931.0,0.422]
[1693582582977,0.07106504,25932.0,25931.0,0.422]
[1693582583576,0.04950297,25932.0,25931.0,0.422]
[1693582583781,0.07106504,25932.0,25931.0,0.422]
[1693582585088,0.09106504,25932.0,25931.0,0.422]
[1693582590591,0.07106504,25932.0,25931.0,0.422]
[1693582590781,0.09106504,25932.0,25931.0,0.422]
[1693582591186,0.48806504,25932.0,25931.0,0.0014]
[1693582591387,0.50806504,25932.0,25931.0,0.0014]
[1693582591795,0.24204732,25929.0,25928.0,0.417]
[1693582591987,0.65904732,25929.0,25928.0,0.417]
[1693582592297,0.67755029,25929.0,25928.0,0.417]
[1693582592889,0.69911236,25929.0,25928.0,0.417]
[1693582593194,0.68355029,25929.0,25928.0,0.485]
[1693582593388,0.66504732,25929.0,25928.0,0.55968907]
[1693582593789,0.28004732,25929.0,25928.0,0.477]
[1693582593993,0.28004732,25929.0,25928.0,0.53354838]
[1693582594396,0.34311236,25929.0,25928.0,0.442]
[1693582594593,0.32155029,25929.0,25928.0,0.442]
[1693582594986,0.34311236,25929.0,25928.0,0.442]
[1693582595185,0.32155029,25929.0,25928.0,0.442]
[1693582595595,0.34311236,25929.0,25928.0,0.442]
[1693582595897,0.32155029,25929.0,25928.0,0.442]
[1693582596786,0.34311236,25929.0,25928.0,0.442]
[1693582597889,0.32155029,25929.0,25928.0,0.442]
[1693582598486,0.34311236,25929.0,25928.0,0.442]
[1693582598686,0.32155029,25929.0,25928.0,0.442]
[1693582598909,0.34311236,25929.0,25928.0,0.442]
[1693582599098,0.32155029,25929.0,25928.0,0.442]
[1693582600597,0.34311236,25929.0,25928.0,0.422]
[1693582602695,0.76011236,25929.0,25928.0,0.005]
[1693582605491,0.73855029,25929.0,25928.0,0.05968907]
[1693582605691,0.72004732,25929.0,25928.0,0.005]
[1693582606097,0.76011236,25929.0,25928.0,0.005]
[1693582606893,0.34311236,25929.0,25928.0,0.422]
[1693582608395,0.32155029,25929.0,25928.0,0.422]
[1693582608796,0.34311236,25929.0,25928.0,0.422]
[1693582611695,0.97272911,25929.0,25928.0,0.005]
[1693582611897,0.95272911,25929.0,25928.0,0.005]
[1693582612095,0.78011236,25929.0,25928.0,0.005]
[1693582612501,0.78011236,25929.0,25921.0,0.417]
[1693582612502,0.24204732,25926.0,25921.0,0.417]
[1693582612706,0.65904732,25923.0,25921.0,0.417]
[1693582612895,0.04006504,25922.0,25921.0,0.417]
[1693582613898,0.04006504,25922.0,25919.0,0.417]
[1693582613899,0.47706504,25922.0,25919.0,0.417]
[1693582614099,0.02,25922.0,25921.0,0.005]
[1693582614298,0.437,25922.0,25921.0,0.005]
[1693582614502,0.45856207,25922.0,25921.0,0.005]
[1693582614701,0.47706504,25922.0,25921.0,0.005]
[1693582615000,0.66957028,25922.0,25921.0,0.005]
[1693582615201,0.47706504,25922.0,25921.0,0.005]
[1693582615409,0.69857028,25922.0,25921.0,0.005]
[1693582616408,0.71957028,25922.0,25921.0,0.004]
[1693582616911,0.69057028,25922.0,25921.0,0.002]
[1693582617116,0.72657028,25922.0,25921.0,0.004]
[1693582617318,0.55006504,25922.0,25921.0,0.005]
[1693582618312,0.24204732,25916.0,25913.0,0.1589]
[1693582618518,0.417,25914.0,25913.0,0.02]
[1693582618817,0.44512344,25914.0,25913.0,0.02]
[1693582619219,0.48518848,25914.0,25912.0,0.417]
[1693582619406,0.44512344,25914.0,25912.0,0.437]
[1693582619917,0.01850297,25913.0,25912.0,0.437]
[1693582620218,0.01850297,25913.0,25912.0,1.54947931]
[1693582620414,0.04006504,25913.0,25912.0,1.52947931]
[1693582620613,0.004,25914.0,25912.0,1.60602769]
[1693582620925,0.004,25914.0,25913.0,2.24642679]
[1693582621220,0.004,25916.0,25914.0,0.417]
[1693582621415,0.004,25916.0,25915.0,1.6055485]
[1693582621618,0.004,25916.0,25915.0,1.6255485]
[1693582621824,0.24204732,25920.0,25915.0,1.73678595]
[1693582622019,0.24204732,25920.0,25919.0,0.417]
[1693582622218,0.24204732,25920.0,25919.0,0.52823745]
[1693582622631,0.24204732,25920.0,25919.0,0.47354838]
[1693582622922,0.24204732,25920.0,25919.0,0.49354838]
[1693582624025,0.26055029,25920.0,25919.0,0.417]
[1693582624417,0.26055029,25920.0,25918.0,0.417]
[1693582624418,0.69911236,25920.0,25918.0,0.417]
[1693582624617,0.43550297,25919.0,25918.0,0.417]
[1693582625116,0.45706504,25919.0,25918.0,0.417]
[1693582625320,0.43550297,25919.0,25918.0,0.417]
[1693582625623,0.31404732,25920.0,25918.0,0.417]
[1693582625823,0.33255029,25920.0,25919.0,0.417]
[1693582626118,0.33560939,25920.0,25919.0,0.417]
[1693582626320,0.31811236,25920.0,25919.0,0.417]
[1693582629019,0.31811236,25920.0,25919.0,0.418]
[1693582629327,0.35411236,25920.0,25919.0,0.418]
[1693582629818,0.77111236,25920.0,25919.0,0.418]
[1693582630416,0.73104732,25920.0,25919.0,0.52923745]
[1693582630817,0.73104732,25920.0,25919.0,0.47454838]
[1693582631223,0.73104732,25920.0,25919.0,0.001]
[1693582631527,0.77111236,25920.0,25919.0,0.001]
[1693582631717,0.79111236,25920.0,25919.0,0.001]
[1693582632221,0.95401236,25920.0,25919.0,0.001]
[1693582632527,0.24204732,25915.0,25913.0,0.417]
[1693582632728,0.04006504,25914.0,25913.0,0.417]
[1693582633632,0.01850297,25914.0,25913.0,0.417]
[1693582634328,0.04006504,25914.0,25913.0,0.417]
[1693582635026,0.69911236,25915.0,25913.0,0.47354838]
[1693582635332,0.66304732,25915.0,25913.0,0.424]
[1693582635526,0.04006504,25914.0,25913.0,0.424]
[1693582635921,0.02250297,25914.0,25913.0,0.424]
[1693582638030,0.04206504,25914.0,25913.0,0.424]
[1693582638324,0.02050297,25914.0,25913.0,0.424]
[1693582639226,0.02150297,25914.0,25913.0,0.424]
[1693582639830,0.003,25914.0,25913.0,0.424]
[1693582640029,0.003,25914.0,25913.0,0.55523745]
[1693582640535,0.003,25914.0,25913.0,0.53523745]
[1693582640834,0.26355029,25914.0,25913.0,0.424]
[1693582641236,0.28511236,25914.0,25913.0,0.424]
[1693582642233,0.003,25914.0,25913.0,0.55850106]
[1693582642734,0.003,25914.0,25913.0,0.61319013]
[1693582642926,0.003,25914.0,25913.0,0.59900013]
[1693582643127,0.003,25914.0,25913.0,0.61319013]
[1693582646134,0.003,25914.0,25913.0,1.72554019]
[1693582648026,0.003,25914.0,25913.0,1.70554019]
[1693582649426,0.003,25914.0,25913.0,0.59319013]
[1693582649631,0.003,25914.0,25913.0,0.48195268]
[1693582649632,0.02150297,25914.0,25913.0,0.48195268]
[1693582649832,0.003,25914.0,25913.0,1.6508936]
[1693582650332,0.003,25914.0,25913.0,0.59319013]
[1693582650527,0.023,25914.0,25913.0,0.424]
[1693582650732,0.023,25914.0,25913.0,0.40501]
[1693582650928,0.26504732,25914.0,25913.0,0.40501]
[1693582651137,0.30511236,25914.0,25913.0,0.40501]
[1693582651833,0.28355029,25914.0,25913.0,0.40501]
[1693582652035,0.26355029,25914.0,25913.0,0.40501]
[1693582652236,0.26504732,25914.0,25913.0,0.46155838]
[1693582652440,0.24504732,25914.0,25913.0,0.46155838]
[1693582652636,0.24504732,25914.0,25913.0,0.51624745]
[1693582654033,0.24504732,25914.0,25913.0,0.45969907]
[1693582654233,0.26355029,25914.0,25913.0,0.45969907]
[1693582654731,0.26355029,25914.0,25913.0,0.40501]
[1693582655136,0.26355029,25914.0,25913.0,0.45969907]
[1693582655938,0.26355029,25914.0,25913.0,0.40501]
[1693582656639,0.24504732,25914.0,25913.0,0.46155838]
[1693582656841,0.24504732,25914.0,25913.0,1.57402297]
[1693582657041,0.003,25914.0,25913.0,1.62871204]
[1693582659242,0.02150297,25914.0,25913.0,1.62871204]
[1693582660746,0.003,25914.0,25913.0,1.62871204]
[1693582661142,0.003,25914.0,25913.0,0.40501]
[1693582661648,0.04306504,25914.0,25913.0,0.40501]
[1693582662652,0.02150297,25914.0,25913.0,0.40501]
[1693582664542,0.04306504,25914.0,25913.0,0.40501]
[1693582664742,0.02150297,25914.0,25913.0,0.40501]